Cogmind - Beta 15 @@@ ROGUE MODE // 2025.05.24 @ 23:17:38 Player: wrongrogue Result: Destroyed by G-34 Mercenary with Small Laser Performance ------------- Evolutions (0) 0 Regions Visited (1) 200 Robots Destroyed (7) 35 Value Destroyed (123) 123 Prototype IDs (0) 0 Alien Tech Used (0) 0 Bonus (0) 0 TOTAL SCORE: 358 Bonus ------- None Cogmind --------- Core Integrity 0/250 Matter 300/300 Energy 100/100 System Corruption 0% Temperature Cool (15) Movement Core (2000) Ox39 Location -10/Materials Parts ------- > --- POWER (1) -------- (None) > --- PROPULSION (2) --- (None) > --- UTILITY (2) ------ High-capacity Storage Unit Huge Storage Unit > --- WEAPON (2) ------- (None) > --- INVENTORY (25) --- (None) Peak State ------------ > --- POWER ------------ Ion Engine > --- PROPULSION ------- Aluminum Leg Aluminum Leg > --- UTILITY ---------- High-capacity Storage Unit Huge Storage Unit > --- WEAPON ----------- EM Pulse Gun EM Pulse Gun > --- INVENTORY -------- (None) [Rating: 7] Favorites ----------- Power Ion Engine Engine Ion Engine Propulsion Aluminum Leg Leg Aluminum Leg Utility High-capacity Storage Unit Storage High-capacity Storage Unit Weapon EM Pulse Gun Energy Gun EM Pulse Gun Build | -11 -10 ------- Run | Yrd Mat Slots Evolved . | . . Power . | . . Propulsion . | . . Utility . | . . Weapon . | . . Parts Attached 7 | 5 2 Power 1 | 1 . Engine 1 | 1 . Core . | . . Reactor . | . . Propulsion 2 | 2 . Treads . | . . Leg 2 | 2 . Wheel . | . . Hover . | . . Flight . | . . Utility 2 | . 2 Device . | . . Storage 2 | . 2 Processor . | . . Hackware . | . . Protection . | . . Artifact . | . . Weapon 2 | 2 . Energy Gun 2 | 2 . Energy Cannon . | . . Ballistic Gun . | . . Ballistic Cannon . | . . Launcher . | . . Special Weapon . | . . Impact Weapon . | . . Slashing Weapon . | . . Piercing Weapon . | . . Special Melee Weapon . | . . Unidentified Prototypes . | . . Parts Lost 5 | . 5 Power 1 | . 1 Propulsion 2 | . 2 Utility . | . . Weapon 2 | . 2 Highest Loss Streak 5 | . 5 To Critical Strikes . | . . Average Backups . | . . Power . | . . Propulsion . | . . Utility . | . . Weapon . | . . Tool/Special . | . . Unused Backups . | . . Power . | . . Propulsion . | . . Utility . | . . Weapon . | . . Tool/Special . | . . Average Slot Usage (%) 90 | . 90 Engine 14 | . 14 Leg 27 | . 27 Storage 20 | . 20 Energy Gun 26 | . 26 Peak Build Rating 7 | 5 7 Average Rating 6 | 3 6 On Entrance 2 | . 5 Naked Turns . | . . Heaviest Build 129 | 9 129 Greatest Support 20 | 20 20 Greatest Overweight (x) 41 | . 41 Average Overweight (x) 2 | . 3 Largest Inventory Capacity 25 | 5 25 Average Capacity 20 | 5 21 Most Carried 4 | 4 1 Average Carried . | . . Final Capacity 25 | 5 25 Final Carried . | . . Class Distribution -------------------- 100% | Mutant Dominant Class ---------------- Mutant | -10/Materials Resources | -11 -10 ----------- Run | Yrd Mat Matter Collected 270 | 246 24 Remotely . | . . Salvage Created 261 | 64 197 Parts 18 | 1 17 Haulers Intercepted . | . . Recyclers Shooed . | . . Parts Field Recycled . | . . Retrieved Matter . | . . Parts Self-Destructed . | . . Prevented . | . . Kills | -11 -10 ------- Run | Yrd Mat Combat Hostiles Destroyed 2 | . 2 Guns 2 | . 2 Classes Destroyed 4 | 1 3 Worker 1 | . 1 Builder 3 | . 3 Recycler 1 | 1 . Grunt 2 | . 2 Best Kill Streak 2 | 1 2 Combat Bots Only 2 | . 2 Max Kills in Single Turn 1 | 1 1 Gunslinging . | . . Exploded . | . . Melee . | . . Uniques/NPCs Destroyed . | . . Combat | -11 -10 -------- Run | Yrd Mat Hostile Shots Fired 82 | . 82 Missed 26 | . 26 Hits 56 | . 56 Projectile 56 | . 56 Damage Taken 702 | . 702 Core 251 | . 251 Absorbed by Shields . | . . Core Remaining (%) 100 | 100 . Volleys Fired 29 | 1 28 Largest 1 | 1 1 Hottest 40 | 40 40 Shots Fired 29 | 1 28 Gun 29 | 1 28 Cannon . | . . Launcher . | . . Special . | . . Kinetic . | . . Thermal . | . . Explosive . | . . Electromagnetic 29 | 1 28 Robot Hit Streak 7 | 1 7 Robot Miss Streak 1 | . 1 Penetration Max . | . . Secondary Targets . | . . Shots Hit Robots 22 | 1 21 Core Hits 11 | 1 10 Critical Kills . | . . Critical Parts Destroyed . | . . Critical Strikes . | . . Melee Attacks . | . . Impact . | . . Slashing . | . . Piercing . | . . Sneak Attacks . | . . Combat Hostiles . | . . Follow-up Attacks . | . . Damage Inflicted 376 | 46 330 Guns 315 | 13 302 Cannons . | . . Explosions 61 | 33 28 Melee . | . . Ramming . | . . Kinetic . | . . Thermal 61 | 33 28 Explosive . | . . Electromagnetic 315 | 13 302 Impact . | . . Slashing . | . . Piercing . | . . Highest Corruption . | . . Average Corruption . | . . Corruption Purged . | . . Corruption Blocked . | . . Overload Shots . | . . Overflow Damage . | . . Projectiles . | . . Explosions . | . . Melee . | . . Knockbacks . | . . Impact . | . . Kinetic . | . . Secondary . | . . Self-Inflicted Damage . | . . Shots . | . . Rammed . | . . Targets Rammed . | . . Kicked . | . . Crushed . | . . Highest Temperature 159 | . 159 Average Temperature 87 | . 87 Received Heat Transfer 393 | . 393 Siege Activations . | . . Martial Activations . | . . Shielding Activations . | . . Robots Disrupted . | . . Combat Hostiles . | . . Robots Corrupted . | . . Combat Hostiles . | . . Parts Fried . | . . Impact Corruptions . | . . Robots Melted . | . . Combat Hostiles . | . . Parts Melted . | . . Heat Transferred 50 | . 50 Parts Sabotaged . | . . Parts Stolen . | . . Parts Stripped . | . . Power Chain Reactions 2 | 1 1 Alert | -11 -10 ------- Run | Yrd Mat Maximum Alert Level . | . . Low Security (%) 100 | 100 100 Level 1 . | . . Level 2 . | . . Level 3 . | . . Level 4 . | . . Level 5 . | . . High Security . | . . Max Security . | . . Peak Influence 122 | 5 122 Initial . | . . Average 8 | 1 9 Influence Increases 170 | 5 165 Destroy 0b10 Robot/C 40 | . 40 Destroy 0b10 Robot/NC 25 | 5 20 Destroy Leader 10 | . 10 Disable Machine 30 | . 30 Destroy Structure 5 | . 5 Lose Combat Pursuer 60 | . 60 Influence Decreases 114 | 5 109 Time Decay 64 | 5 59 Lost Part 50 | . 50 Squads Dispatched 1 | . 1 Investigation . | . . Extermination . | . . Reinforcement 1 | . 1 Assault . | . . Garrison . | . . Intercept . | . . Searches Triggered . | . . Construction Impeded . | . . Haulers Reinforced . | . . Active Scanning Responses . | . . Cargo Convoy Interrupts . | . . Stealth | -11 -10 --------- Run | Yrd Mat Distress Signals . | . . Communications Jammed . | . . Distress Signals . | . . Times Spotted 12 | . 12 Peak Tracking Total 4 | . 4 Tactical Retreats 1 | . 1 Traps | -11 -10 ------- Run | Yrd Mat Traps Triggered . | . . Indirectly . | . . Trap Hack Attempts . | . . Triggered . | . . Disarmed . | . . Reprogrammed . | . . Reused . | . . Traps Extracted . | . . Installed . | . . Triggered . | . . Machines | -11 -10 ---------- Run | Yrd Mat Machines Disabled 2 | . 2 Max in Single Turn 1 | . 1 Machines Repaired . | . . Machines Dismantled . | . . Machines Sabotaged . | . . Overloaded Fab Kills . | . . Hacking | -11 -10 --------- Run | Yrd Mat Machines Accessed . | . . Terminals . | . . Fabricators . | . . Repair Stations . | . . Recycling Units . | . . Scanalyzers . | . . Garrison Access . | . . Total Hacks . | . . Successful . | . . Failed . | . . Catastrophic . | . . Database Lockouts . | . . Manual . | . . Terminals . | . . Fabricators . | . . Repair Stations . | . . Recycling Units . | . . Scanalyzers . | . . Garrison Access . | . . Terminal Hacks . | . . Fabricator Hacks . | . . Repair Station Hacks . | . . Recycling Unit Hacks . | . . Scanalyzer . | . . Garrison Access Hacks . | . . Unauthorized Hacks . | . . Terminals . | . . Fabricators . | . . Repair Stations . | . . Recycling Units . | . . Scanalyzers . | . . Garrison Access . | . . Data Cores Recovered . | . . Used . | . . Hacking Detections . | . . Full Trace Events . | . . Feedback Events . | . . Feedback Blocked . | . . Robot Schematics Acquired . | . . Robots Built . | . . Authchips . | . . Time . | . . Total Robot Build Rating . | . . Part Schematics Acquired . | . . Parts Built . | . . Authchips . | . . Time . | . . Total Part Build Rating . | . . Parts Repaired . | . . Time . | . . Parts Recycled . | . . Recycled Matter . | . . Retrieved Matter . | . . Retrieved Components . | . . Parts Scanalyzed . | . . Part Schematics Acquired . | . . Parts Damaged . | . . Bothacking | -11 -10 ------------ Run | Yrd Mat Used RIF Installer . | . . Robots Hacked . | . . Non-combat . | . . Combat . | . . Robot Hacks Applied . | . . Relay Couplers Released . | . . Fabnet Peak Effective % . | . . Robots Rewired . | . . Allies Hacked . | . . Hacks Repelled . | . . Allies | -11 -10 -------- Run | Yrd Mat Total Allies . | . . Largest Group . | . . Highest-Rated Group . | . . Highest-Rated Ally . | . . Total Orders . | . . Ally Attacks . | . . Total Damage . | . . Kills . | . . Allies Corrupted . | . . Allies Melted . | . . Intel | -11 -10 ------- Run | Yrd Mat Active Infowar (turns) . | . . Robot Analysis Total . | . . Derelict Logs Recovered . | . . Drone Launches . | . . Drone Recoveries . | . . Exploration | -11 -10 ------------- Run | Yrd Mat Turns Passed 584 | 63 521 Spaces Moved 194 | 56 138 Core 23 | 22 1 Treads . | . . Legs 171 | 34 137 Wheels . | . . Hover . | . . Flight . | . . Fastest Speed 50 | 50 120 Average Speed 273 | 92 347 Slowest Speed 2100 | 120 2100 Overloaded Moves . | . . Propulsion Burnouts . | . . Robots Hopped . | . . Potential Cave-ins . | . . Cave-ins Triggered . | . . Exploration Rate (%) 20 | 3 37 Regions Visited 1 Branch Regions . Pre-discovered Areas . | . . Known Exits Taken . | . . Unknown Exits Taken 1 | 1 . Scrap Searched . | . . Spaces Dug . | . . Terrain Destroyed 6 | 2 4 Melee . | . . Projectile . | . . AOE 6 | 2 4 Terrain Rammed . | . . Walls Destroyed . | . . Machines Disabled . | . . Actions | -11 -10 --------- Run | Yrd Mat Total 236 | 66 170 Wait . | . . Move 193 | 55 138 Hop . | . . Pick Up 7 | 5 2 Fast Attach . | . . Attach 7 | 5 2 Detach . | . . Swap . | . . Drop . | . . Fire 29 | 1 28 Melee . | . . Ram . | . . Kick . | . . Crush . | . . Escape Stasis . | . . Rewire . | . . Trap . | . . Miscellaneous . | . . Route ------- -11/Scrapyard -10/Materials (discovered 2 exits: [*Mat x2]) History --------- Turn | Location | Event 11 | -11/Scrapyard | Discovered new exit (range 14) 64 | -11/Scrapyard | Entered Materials 88 | -10/Materials | Discovered new exit (range 13) 314 | -10/Materials | Build established: Mutant 502 | -10/Materials | Discovered new exit (range 15) 571 | -10/Materials | Core integrity fell below 50% 582 | -10/Materials | Core integrity fell below 20% 585 | -10/Materials | Destroyed by G-34 Mercenary with Small Laser Last Messages --------------- 00425_ K-01 Serf collects debris. 00478_ K-01 Serf cleans the Terminal. 00502_ EXIT=FOUND 00526_ G-47 Trooper misfires. 00531_ G-47 Trooper destroyed. 00545_ Chain reaction triggered in Ion Engine. 00545_ Hadron Collector disabled. 00551_ G-34 Mercenary destroyed. 00556_ EM Pulse Gun destroyed. 00556_ K-01 Serf cleans the Terminal. 00556_ U-05 Engineer lays Concrete. 00558_ EM Pulse Gun destroyed. 00561_ Aluminum Leg destroyed. 00574_ K-01 Serf destroyed. 00577_ G-34 Mercenary misfires. 00578_ Aluminum Leg destroyed. 00584_ K-01 Serf collects debris. 00585_ Ion Engine destroyed. [Achievement: First Step to Greatness] Map ----- +----------------------------------------------------+ | # #???????????????????????????????????????? | | # #???????????????????????????????????????? | | # #???????????????????????????????????????? | | + #???????????????????????????????????????? | | # #???????????????????????????????????????? | | # +???????????????????????????????????????? | | #???????????????????????????????????????? | | #???????????????????????????????????????? | | #?????????????????????? ?#????????????? | | # #?????????????????????? ??????????? | | + #?????????????????????? #????????? | | # #???????????????????### #????????? | | # #??????????????????? #????????? | | # #??????????????????? ! #????????? | | # #############??????? g #? ??????? | | # ???????? g # ??????? | | # ????????k + ???????? | | # ? ????????? #????????? | | # ######+#######???#k= g #????????? | | + + #???#!%* #####????? | | # #### """ """ ""###= #????? | | # #??# "T" """ " !!%=[ < #????? | | # #??# """ ""###g "T" #????? | | # #??# #???# ######??????????? | | # #####+###########???# #???????????????? | | # !#????????????#@ #???????????????? | | # *%#????????????# #???????????????? | | # """" =#????????????# #???????????????? | | # """" #????????????# #???????????????? | | # """" #????????????# #???????????????? | | # #????????????# #???????????????? | | # #????????????# #???????????????? | | # """" #????????????# #???????????????? | | # """" #????????????# #???????????????? | | # """" #????????????? ???????????????? | | # ?? #????????????? ???????????????? | | # ?? #????????????? ???????????????? | | "??" #????????????? ##??????????????? | | "??" ????????????? #???????????????? | | ???? ????????????? #???????????????? | | ???? ????????????? ????????????????? | | ?? ???? ????????????????????????????????? | | ????????????????????????????????????????????? | | ????????????????????????????????????????????? | | ????????????????????????????????????????????? | | ????????????????????????????????????????????? | | ????????????????????????????????????????????? | | ????????????????????????????????????????????? | | ????????????????????????????????????????????? | | ????????????????????????????????????????????? | +----------------------------------------------------+ Best States ------------- Heat Dissipation 25 Energy Generation 10 Energy Capacity 250 Matter Stores 300 Matter Capacity 300 Sight Range 16 Terrain Scan Density 10 Evasion (%) 55 Item Schematics ----------------- None Robot Schematics ------------------ None Fabricated ------------ Nothing Repaired ---------- Nothing Alien Tech Used ----------------- None Achievements -------------- First Step to Greatness Challenges ------------ None Game ------ Seed PartitionSuperdenseDrillbomb Manual? 0 Play Time 00:11:42 Cumulative 11.3 hours Start 2025.05.24 @ 23:06:11 End 2025.05.24 @ 23:17:38 Sessions 1 Manual Loads 0 Difficulty Rogue Special Mode None Game No. 12 Rogue 12 Adventurer 0 Explorer 0 Win Type - Total 0 Types 0/0/0/0/0/0/0/0/0/0 Lore% 0 Gallery% 8 Achievement% 1 Wizard Run 0 Options --------- Layout 1 ASCII 0 Keyboard 0 Movement Mouse Keybinds 0 Fullscreen 1 Font 48/Smallcaps Map View 50x35 Zoom Use 0% Tactical HUD 1 Map Filters NONE Filters NONE Steam 1 RUN: 7ec9552d-f6e4-4f18-bc42-66fe81bf6ad7